[Event "ROU-chT Women Superliga 2018"]
[Site "Sovata"]
[Date "2018.12.01"]
[Round "7"]
[White "Visanescu, Daria-Ioana"]
[Black "Cristocea, Gabriela"]
[Result "1-0"]
[ECO "C03"]
[WhiteElo "2096"]
[BlackElo "1843"]
[Annotator "NA"]
[PlyCount "47"]
[EventDate "2018.11.24"]
[EventType "team-tourn"]
[EventCountry "ROU"]
[SourceTitle "playchess.com"]
[Source "ChessBase"]
[SourceQuality "1"]
[TimeControl "40/5400+30:1800+30"]

1. e4 {[%emt 0:00:00]} e6 {[%emt 0:00:00]} 2. d4 {[%emt 0:00:00]} d5 {[%emt 0:00:00]} 3. Nd2 {[%emt 0:00:00]} Nc6 {[%emt 0:00:00]} 4. c3 {[%emt 0:00:58]} e5 {[%emt 0:00:00]} 5. Ngf3 {[%emt 0:10:39]} exd4 {[%emt 0:03:29]} 6. cxd4 {[%emt 0:04:18]} dxe4 {[%emt 0:01:31]} 7. Nxe4 {[%emt 0:01:58]} Qe7 {[%emt 0:05:24]} 8. Qe2 {[%emt 0:00:20]} Bf5 {[%emt 0:02:30]} 9. Ng3 {[%emt 0:05:01]} Nb4 {[%emt 0:01:48]} 10. Nxf5 {[%emt 0:18:55]} Nc2+ {[%emt 0:00:14]} 11. Kd1 {[%emt 0:00:13]} Qxe2+ {[%emt 0:01:00]} 12. Bxe2 {[%emt 0:00:07]} Nxa1 {[%emt 0:01:08]} 13. b3 {[%emt 0:00:42]} g6 {[%emt 0:13:16]} 14. Ng3 {[%emt 0:09:49]} Bg7 {[%emt 0:01:15]} 15. Bb2 {[%emt 0:01:25]} Nxb3 {[%emt 0:00:24]} 16. axb3 {[%emt 0:00:05]} O-O-O {[%emt 0:00:05]} 17. Kc2 {[%emt 0:01:58]} h6 {[%emt 0:01:12]} 18. Ne5 {[%emt 0:01:44]} Rf8 {[%emt 0:05:15]} 19. Bc4 {[%emt 0:05:07]} Bxe5 {[%emt 0:03:32]} 20. dxe5 {[%emt 0:00:06]} Rh7 {[%emt 0:02:38]} 21. Ne4 {[%emt 0:01:02]} Rd8 {[%emt 0:02:06]} 22. e6 {[%emt 0:01:51]} fxe6 {[%emt 0:00:32]} 23. Bxe6+ {[%emt 0:00:06]} Kb8 {[%emt 0:00:20]} 24. Bxg8 {[%emt 0:00:11]} 1-0

[Event "ROU-chT Women Superliga 2018"]
[Site "Sovata"]
[Date "2018.12.01"]
[Round "7"]
[White "Baciu, Anca-Otilia"]
[Black "Popa, Catalina-Elena"]
[Result "1-0"]
[ECO "B84"]
[WhiteElo "1998"]
[BlackElo "1746"]
[Annotator "NA"]
[PlyCount "57"]
[EventDate "2018.11.24"]
[EventType "team-tourn"]
[EventCountry "ROU"]
[SourceTitle "playchess.com"]
[Source "ChessBase"]
[SourceQuality "1"]
[TimeControl "40/5400+30:1800+30"]

1. e4 {[%emt 0:00:00]} c5 {[%emt 0:00:00]} 2. Nf3 {[%emt 0:00:00]} e6 {[%emt 0:00:00]} 3. d4 {[%emt 0:00:00]} cxd4 {[%emt 0:00:00]} 4. Nxd4 {[%emt 0:00:00]} Nf6 {[%emt 0:00:00]} 5. Nc3 {[%emt 0:00:07]} d6 {[%emt 0:00:02]} 6. Be2 {[%emt 0:00:18]} a6 {[%emt 0:00:10]} 7. f4 {[%emt 0:00:51]} Be7 {[%emt 0:00:37]} 8. O-O {[%emt 0:00:24]} Nbd7 {[%emt 0:01:25]} 9. Kh1 {[%emt 0:00:29]} h5 {[%emt 0:00:22]} 10. Bf3 {[%emt 0:20:10]} Rb8 {[%emt 0:00:25]} 11. Qe1 {[%emt 0:00:37]} Qc7 {[%emt 0:04:11]} 12. Be3 {[%emt 0:09:26]} b5 {[%emt 0:01:36]} 13. a3 {[%emt 0:00:18]} Bb7 {[%emt 0:08:09]} 14. Qg3 {[%emt 0:10:48]} Nc5 {[%emt 0:15:21]} 15. e5 {[%emt 0:05:22]} Bxf3 {[%emt 0:00:20]} 16. exf6 {[%emt 0:01:21]} Bxg2+ {[%emt 0:00:17]} 17. Qxg2 {[%emt 0:00:10]} Bxf6 {[%emt 0:01:57]} 18. f5 {[%emt 0:03:32]} b4 {[%emt 0:09:01]} 19. Ne4 {[%emt 0:05:47]} Nxe4 {[%emt 0:03:30]} 20. Qxe4 {[%emt 0:00:11]} d5 {[%emt 0:03:00]} 21. Qg2 {[%emt 0:03:11]} e5 {[%emt 0:01:34]} 22. Rae1 {[%emt 0:01:41]} Qd7 {[%emt 0:03:44]} 23. Bf4 {[%emt 0:02:30]} O-O {[%emt 0:04:31]} 24. Bxe5 {[%emt 0:01:06]} Bxe5 {[%emt 0:00:22]} 25. Rxe5 {[%emt 0:00:05]} bxa3 {[%emt 0:00:28]} 26. bxa3 {[%emt 0:06:19]} Qd6 {[%emt 0:02:22]} 27. f6 {[%emt 0:01:06]} g6 {[%emt 0:00:19]} 28. Rxh5 {[%emt 0:00:22]} Qxa3 {[%emt 0:01:22]} 29. Qg5 {[%emt 0:02:55]} 1-0

[Event "ROU-chT Women Superliga 2018"]
[Site "Sovata"]
[Date "2018.12.01"]
[Round "7"]
[White "Bucur, Denisa-Andreea"]
[Black "Bulmaga, Irina"]
[Result "0-1"]
[ECO "D37"]
[WhiteElo "1997"]
[BlackElo "2391"]
[Annotator "ChessBase"]
[PlyCount "96"]
[EventDate "2018.11.24"]
[EventType "team-tourn"]
[EventCountry "ROU"]
[SourceTitle "playchess.com"]
[Source "ChessBase"]
[SourceQuality "1"]
[TimeControl "40/5400+30:1800+30"]

1. d4 {[%emt 0:00:00]} Nf6 {[%emt 0:00:00]} 2. Nf3 {[%emt 0:00:00]} e6 {[%emt 0:00:00]} 3. c4 {[%emt 0:00:00]} d5 {[%emt 0:00:00]} 4. Nc3 {[%emt 0:00:06]} Nbd7 {[%emt 0:00:00]} 5. c5 {[%emt 0:02:29]} b6 {[%emt 0:03:22]} 6. c6 {[%emt 0:16:51]} Nb8 {[%emt 0:00:07]} 7. Qa4 {[%emt 0:00:04]} Ne4 {[%emt 0:11:09]} 8. Bf4 {[%emt 0:13:17]} Nxc3 {[%emt 0:01:38]} 9. bxc3 {[%emt 0:00:03]} Bd6 {[%emt 0:05:45]} 10. Bd2 {[%emt 0:08:41]} O-O {[%emt 0:08:37]} 11. c4 {[%emt 0:05:48]} a6 {[%emt 0:13:23]} 12. e3 {[%emt 0:03:54]} dxc4 {[%emt 0:05:42]} 13. Bxc4 {[%emt 0:08:49]} Qe8 {[%emt 0:05:34]} 14. d5 {[%emt 0:03:05]} b5 {[%emt 0:05:39]} 15. Bxb5 {[%emt 0:01:35]} exd5 {[%emt 0:00:06]} 16. Rc1 {[%emt 0:01:27]} Bf5 {[%emt 0:03:57]} 17. Be2 {[%emt 0:03:37]} Be4 {[%emt 0:01:43]} 18. O-O {[%emt 0:02:22]} a5 {[%emt 0:04:21]} 19. Nd4 {[%emt 0:10:20]} Na6 {[%emt 0:01:35]} 20. f3 {[%emt 0:03:23]} Bg6 {[%emt 0:00:02]} 21. Bxa6 {[%emt 0:01:09]} Rxa6 {[%emt 0:00:02]} 22. Qb5 {[%emt 0:00:22]} Ra8 {[%emt 0:02:23]} 23. Qxd5 {[%emt 0:00:18]} Bb4 {[%emt 0:00:12]} 24. Bxb4 {[%emt 0:04:37]} Qxe3+ {[%emt 0:00:22]} 25. Kh1 {[%emt 0:00:02]} axb4 {[%emt 0:02:10]} 26. Nc2 {[%emt 0:04:51]} Qc3 {[%emt 0:04:47]} 27. Qb3 {[%emt 0:01:34]} Qxb3 {[%emt 0:06:01]} 28. axb3 {[%emt 0:00:06]} Bxc2 {[%emt 0:00:56]} 29. Rxc2 {[%emt 0:00:05]} Ra3 {[%emt 0:00:12]} 30. Rb1 {[%emt 0:02:17]} Rd8 {[%emt 0:01:44]} 31. h3 {[%emt 0:00:26]} g6 {[%emt 0:03:25]} 32. Rc4 {[%emt 0:01:01]} Rb8 {[%emt 0:01:38]} 33. Kh2 {[%emt 0:00:36]} Rb5 {[%emt 0:00:37]} 34. Rb2 {[%emt 0:00:36]} Kf8 {[%emt 0:00:33]} 35. Kg3 {[%emt 0:01:00]} h5 {[%emt 0:02:18]} 36. Kf4 {[%emt 0:01:20]} g5+ {[%emt 0:01:53]} 37. Ke3 {[%emt 0:00:43]} Ke7 {[%emt 0:00:35]} 38. Rd4 {[%emt 0:00:45]} Rc5 {[%emt 0:05:38]} 39. Rd7+ {[%emt 0:00:07]} Ke6 {[%emt 0:00:17]} 40. Rxc7 {[%emt 0:00:00]} Rc3+ {[%emt 0:00:00]} 41. Kd4 {[%emt 0:01:48]} Ra1 {[%emt 0:11:34]} 42. Re2+ {[%emt 0:06:47]} Kf6 {[%emt 0:00:52]} 43. Rb7 {[%emt 0:09:32]} Rd1+ {[%emt 0:01:20]} 44. Ke4 {[%emt 0:00:07]} Rxc6 {[%emt 0:06:32]} 45. Ke3 {[%emt 0:01:55]} Rc3+ {[%emt 0:00:54]} 46. Kf2 {[%emt 0:00:04]} Rxb3 {[%emt 0:00:42]} 47. Kg3 {[%emt 0:06:07]} h4+ {[%emt 0:01:21]} 48. Kg4 {[%emt 0:02:44]} Kg6 {[%emt 0:00:29]} 0-1

[Event "ROU-chT Women Superliga 2018"]
[Site "Sovata"]
[Date "2018.12.01"]
[Round "7"]
[White "Aciu, Malina-Andreea"]
[Black "Panainte, Andreea-Bianca"]
[Result "1/2-1/2"]
[ECO "C07"]
[WhiteElo "1995"]
[BlackElo "1880"]
[Annotator "NA"]
[PlyCount "85"]
[EventDate "2018.11.24"]
[EventType "team-tourn"]
[EventCountry "ROU"]
[SourceTitle "playchess.com"]
[Source "ChessBase"]
[SourceQuality "1"]
[TimeControl "40/5400+30:1800+30"]

1. e4 {[%emt 0:00:00]} e6 {[%emt 0:00:00]} 2. d4 {[%emt 0:00:00]} d5 {[%emt 0:00:00]} 3. Nd2 {[%emt 0:00:00]} c5 {[%emt 0:00:00]} 4. exd5 {[%emt 0:00:00]} Qxd5 {[%emt 0:00:00]} 5. Ngf3 {[%emt 0:00:00]} cxd4 {[%emt 0:00:00]} 6. Bc4 {[%emt 0:00:00]} Qd7 {[%emt 0:00:00]} 7. O-O {[%emt 0:00:02]} Nf6 {[%emt 0:00:03]} 8. Nb3 {[%emt 0:00:07]} Nc6 {[%emt 0:00:05]} 9. Nbxd4 {[%emt 0:00:05]} Nxd4 {[%emt 0:00:10]} 10. Nxd4 {[%emt 0:00:05]} a6 {[%emt 0:00:07]} 11. Re1 {[%emt 0:00:04]} b5 {[%emt 0:00:04]} 12. Bb3 {[%emt 0:00:28]} Bb7 {[%emt 0:00:11]} 13. c3 {[%emt 0:08:36]} Bc5 {[%emt 0:04:40]} 14. Be3 {[%emt 0:08:46]} O-O {[%emt 0:06:30]} 15. Qe2 {[%emt 0:11:37]} Be7 {[%emt 0:05:36]} 16. Red1 {[%emt 0:13:25]} Bd5 {[%emt 0:01:27]} 17. Bg5 {[%emt 0:06:16]} Qb7 {[%emt 0:05:20]} 18. Bxd5 {[%emt 0:01:09]} Qxd5 {[%emt 0:00:44]} 19. Nf3 {[%emt 0:04:09]} Qb7 {[%emt 0:01:11]} 20. Rd4 {[%emt 0:05:19]} h6 {[%emt 0:01:23]} 21. Bh4 {[%emt 0:01:10]} Rad8 {[%emt 0:00:26]} 22. Rad1 {[%emt 0:00:35]} Rxd4 {[%emt 0:00:12]} 23. Rxd4 {[%emt 0:00:54]} Rd8 {[%emt 0:00:22]} 24. Qd3 {[%emt 0:03:15]} Rxd4 {[%emt 0:01:27]} 25. Qxd4 {[%emt 0:00:58]} Nd5 {[%emt 0:03:39]} 26. Bxe7 {[%emt 0:01:57]} Qxe7 {[%emt 0:00:26]} 27. h3 {[%emt 0:01:39]} Qc7 {[%emt 0:01:41]} 28. Ne5 {[%emt 0:03:00]} f6 {[%emt 0:01:41]} 29. Nd3 {[%emt 0:00:27]} Kf7 {[%emt 0:01:05]} 30. a4 {[%emt 0:05:48]} Nb6 {[%emt 0:01:42]} 31. axb5 {[%emt 0:01:14]} axb5 {[%emt 0:00:10]} 32. Nb4 {[%emt 0:05:13]} Na4 {[%emt 0:01:10]} 33. Qd2 {[%emt 0:01:50]} Ke7 {[%emt 0:05:35]} 34. Qe2 {[%emt 0:01:11]} Qc4 {[%emt 0:01:11]} 35. Qc2 {[%emt 0:01:28]} f5 {[%emt 0:01:03]} 36. f3 {[%emt 0:10:01]} Qc5+ {[%emt 0:01:28]} 37. Kh1 {[%emt 0:00:36]} Qe3 {[%emt 0:01:24]} 38. Nc6+ {[%emt 0:01:08]} Kf6 {[%emt 0:01:30]} 39. Nd4 {[%emt 0:02:10]} Qe1+ {[%emt 0:01:17]} 40. Kh2 {[%emt 0:00:00]} Qe5+ {[%emt 0:00:00]} 41. Kh1 {[%emt 0:00:32]} Qe1+ {[%emt 0:00:57]} 42. Kh2 {[%emt 0:00:02]} Qe5+ {[%emt 0:00:09]} 43. Kh1 {[%emt 0:00:02]} 1/2-1/2

[Event "ROU-chT Women Superliga 2018"]
[Site "Sovata"]
[Date "2018.12.01"]
[Round "7"]
[White "Firaru, Roxana-Maria"]
[Black "Ionica, Iulia-Ionela"]
[Result "1/2-1/2"]
[ECO "B01"]
[WhiteElo "1943"]
[BlackElo "2139"]
[Annotator "NA"]
[PlyCount "32"]
[EventDate "2018.11.24"]
[EventType "team-tourn"]
[EventCountry "ROU"]
[SourceTitle "playchess.com"]
[Source "ChessBase"]
[SourceQuality "1"]
[TimeControl "40/5400+30:1800+30"]

1. e4 {[%emt 0:00:00]} d5 {[%emt 0:00:00]} 2. exd5 {[%emt 0:00:00]} Nf6 {[%emt 0:00:15]} 3. Nc3 {[%emt 0:00:00]} Nxd5 {[%emt 0:00:43]} 4. d4 {[%emt 0:01:47]} g6 {[%emt 0:09:42]} 5. Nf3 {[%emt 0:03:50]} Bg7 {[%emt 0:00:52]} 6. Be2 {[%emt 0:11:09]} c6 {[%emt 0:02:07]} 7. O-O {[%emt 0:00:31]} Nd7 {[%emt 0:01:48]} 8. Re1 {[%emt 0:02:40]} O-O {[%emt 0:01:04]} 9. Nxd5 {[%emt 0:07:38]} cxd5 {[%emt 0:00:10]} 10. c3 {[%emt 0:00:11]} Nf6 {[%emt 0:06:48]} 11. Bd3 {[%emt 0:01:44]} b6 {[%emt 0:07:15]} 12. Ne5 {[%emt 0:03:47]} Bb7 {[%emt 0:00:14]} 13. f3 {[%emt 0:04:35]} Nd7 {[%emt 0:09:51]} 14. Bf4 {[%emt 0:02:11]} Nxe5 {[%emt 0:03:08]} 15. Bxe5 {[%emt 0:00:22]} f6 {[%emt 0:00:05]} 16. Bg3 {[%emt 0:03:17]} Qd7 {[%emt 0:02:15]} 1/2-1/2

[Event "ROU-chT Women Superliga 2018"]
[Site "Sovata"]
[Date "2018.12.01"]
[Round "7"]
[White "Nastase, Andreea-Cristina"]
[Black "Patru, Alexandra-Ioana"]
[Result "1-0"]
[ECO "D35"]
[WhiteElo "1900"]
[BlackElo "1686"]
[Annotator "NA"]
[PlyCount "119"]
[EventDate "2018.11.24"]
[EventType "team-tourn"]
[EventCountry "ROU"]
[SourceTitle "playchess.com"]
[Source "ChessBase"]
[SourceQuality "1"]
[TimeControl "40/5400+30:1800+30"]

1. d4 {[%emt 0:00:00]} d5 {[%emt 0:00:00]} 2. c4 {[%emt 0:00:00]} e6 {[%emt 0:00:00]} 3. Nc3 {[%emt 0:00:00]} Nf6 {[%emt 0:00:02]} 4. cxd5 {[%emt 0:00:00]} exd5 {[%emt 0:00:07]} 5. Bg5 {[%emt 0:00:00]} Nbd7 {[%emt 0:00:16]} 6. e3 {[%emt 0:00:12]} c6 {[%emt 0:00:08]} 7. Bd3 {[%emt 0:00:04]} Be7 {[%emt 0:00:10]} 8. Nf3 {[%emt 0:00:04]} Nh5 {[%emt 0:00:29]} 9. Bxe7 {[%emt 0:00:36]} Qxe7 {[%emt 0:00:07]} 10. O-O {[%emt 0:00:03]} O-O {[%emt 0:00:08]} 11. Ne5 {[%emt 0:01:09]} g6 {[%emt 0:01:16]} 12. Nxd7 {[%emt 0:04:37]} Bxd7 {[%emt 0:00:13]} 13. e4 {[%emt 0:00:03]} Nf4 {[%emt 0:21:50]} 14. Qf3 {[%emt 0:05:23]} Nxd3 {[%emt 0:04:47]} 15. Qxd3 {[%emt 0:00:06]} dxe4 {[%emt 0:00:08]} 16. Qxe4 {[%emt 0:00:30]} Qb4 {[%emt 0:06:18]} 17. Qd3 {[%emt 0:04:55]} Bf5 {[%emt 0:01:05]} 18. Qd2 {[%emt 0:00:54]} Rad8 {[%emt 0:00:20]} 19. Rad1 {[%emt 0:00:34]} Rd7 {[%emt 0:01:11]} 20. Ne2 {[%emt 0:03:02]} Qxd2 {[%emt 0:03:39]} 21. Rxd2 {[%emt 0:00:05]} Rfd8 {[%emt 0:00:52]} 22. Rfd1 {[%emt 0:00:49]} Be6 {[%emt 0:01:34]} 23. Nc3 {[%emt 0:01:24]} Bd5 {[%emt 0:00:49]} 24. f3 {[%emt 0:01:00]} Re7 {[%emt 0:00:42]} 25. Kf2 {[%emt 0:00:36]} Kg7 {[%emt 0:01:08]} 26. b3 {[%emt 0:03:45]} f5 {[%emt 0:02:25]} 27. Re2 {[%emt 0:01:25]} Rxe2+ {[%emt 0:01:01]} 28. Nxe2 {[%emt 0:00:15]} g5 {[%emt 0:01:13]} 29. Nc3 {[%emt 0:04:01]} h5 {[%emt 0:02:19]} 30. h4 {[%emt 0:08:27]} g4 {[%emt 0:01:41]} 31. Ne2 {[%emt 0:00:26]} Kf6 {[%emt 0:01:28]} 32. Rc1 {[%emt 0:02:55]} Bf7 {[%emt 0:01:41]} 33. Rc5 {[%emt 0:01:31]} Bg6 34. b4 {[%emt 0:06:21]} a6 {[%emt 0:06:11]} 35. a4 {[%emt 0:03:18]} Bf7 {[%emt 0:01:05]} 36. b5 {[%emt 0:01:44]} axb5 {[%emt 0:03:33]} 37. axb5 {[%emt 0:00:04]} Rd6 {[%emt 0:01:14]} 38. bxc6 {[%emt 0:04:58]} bxc6 {[%emt 0:00:36]} 39. Ng3 {[%emt 0:06:01]} Bg6 {[%emt 0:00:16]} 40. Ke3 {[%emt 0:00:00]} gxf3 {[%emt 0:00:00]} 41. gxf3 {[%emt 0:01:45]} f4+ {[%emt 0:02:08]} 42. Kxf4 {[%emt 0:00:08]} Rxd4+ {[%emt 0:00:12]} 43. Ne4+ {[%emt 0:00:02]} Bxe4 {[%emt 0:00:57]} 44. fxe4 {[%emt 0:00:05]} Rd1 {[%emt 0:00:44]} 45. Rxc6+ {[%emt 0:00:42]} Kg7 {[%emt 0:00:15]} 46. Kg5 {[%emt 0:01:18]} Re1 {[%emt 0:00:35]} 47. Rc7+ {[%emt 0:00:17]} Kf8 {[%emt 0:00:15]} 48. Kf6 {[%emt 0:00:17]} Rf1+ {[%emt 0:00:12]} 49. Kg5 {[%emt 0:00:41]} Re1 {[%emt 0:00:17]} 50. Rc4 {[%emt 0:00:14]} Kg7 {[%emt 0:00:22]} 51. Kxh5 {[%emt 0:00:07]} Rg1 {[%emt 0:00:15]} 52. Rc5 {[%emt 0:00:38]} Kf7 {[%emt 0:00:08]} 53. Rf5+ {[%emt 0:01:07]} Ke6 {[%emt 0:00:07]} 54. Rg5 {[%emt 0:00:34]} Re1 {[%emt 0:00:14]} 55. Rg4 {[%emt 0:00:20]} Ke5 {[%emt 0:00:11]} 56. Kg6 {[%emt 0:00:44]} Rf1 {[%emt 0:00:10]} 57. h5 {[%emt 0:00:10]} Rf6+ {[%emt 0:00:07]} 58. Kg7 {[%emt 0:00:04]} Ra6 {[%emt 0:00:16]} 59. h6 {[%emt 0:00:58]} Ra7+ {[%emt 0:00:22]} 60. Kg6 {[%emt 0:00:37]} 1-0

[Event "ROU-chT Women Superliga 2018"]
[Site "Sovata"]
[Date "2018.12.01"]
[Round "7"]
[White "Matasaru, Stephanie"]
[Black "Stanciu, Andreea-Briana"]
[Result "0-1"]
[ECO "B12"]
[WhiteElo "1859"]
[BlackElo "1953"]
[Annotator "NA"]
[PlyCount "96"]
[EventDate "2018.11.24"]
[EventType "team-tourn"]
[EventCountry "ROU"]
[SourceTitle "playchess.com"]
[Source "ChessBase"]
[SourceQuality "1"]
[TimeControl "40/5400+30:1800+30"]

1. e4 {[%emt 0:00:00]} c6 {[%emt 0:00:00]} 2. d4 {[%emt 0:00:00]} d5 {[%emt 0:00:00]} 3. e5 {[%emt 0:00:00]} Bf5 {[%emt 0:00:00]} 4. h4 {[%emt 0:00:00]} h5 {[%emt 0:00:00]} 5. Bg5 {[%emt 0:00:00]} Qb6 {[%emt 0:00:48]} 6. Bd3 {[%emt 0:00:20]} Bxd3 {[%emt 0:03:21]} 7. Qxd3 {[%emt 0:00:07]} e6 {[%emt 0:01:09]} 8. Ne2 {[%emt 0:01:38]} c5 {[%emt 0:04:32]} 9. dxc5 {[%emt 0:02:20]} Bxc5 {[%emt 0:00:08]} 10. O-O {[%emt 0:01:14]} Nc6 {[%emt 0:00:05]} 11. Bf4 {[%emt 0:03:07]} Nge7 {[%emt 0:00:16]} 12. Nbc3 {[%emt 0:00:51]} Ng6 {[%emt 0:03:36]} 13. Na4 {[%emt 0:06:49]} Qb4 {[%emt 0:00:10]} 14. Nxc5 {[%emt 0:00:40]} Nxf4 {[%emt 0:02:16]} 15. Nxf4 {[%emt 0:01:35]} Qxf4 {[%emt 0:00:41]} 16. Nxb7 {[%emt 0:09:49]} O-O {[%emt 0:02:30]} 17. Nc5 {[%emt 0:13:53]} Nxe5 {[%emt 0:01:27]} 18. Qh3 {[%emt 0:06:32]} Ng4 {[%emt 0:02:58]} 19. Nd3 {[%emt 0:04:15]} Qd6 {[%emt 0:00:34]} 20. f3 {[%emt 0:03:27]} Ne3 {[%emt 0:03:49]} 21. Rf2 {[%emt 0:01:22]} Rac8 {[%emt 0:00:38]} 22. c3 {[%emt 0:06:55]} Rc4 {[%emt 0:02:22]} 23. Re1 {[%emt 0:01:11]} d4 {[%emt 0:01:54]} 24. Qh2 {[%emt 0:03:22]} Qxh2+ {[%emt 0:11:54]} 25. Kxh2 {[%emt 0:00:24]} Nf5 {[%emt 0:11:23]} 26. Re4 {[%emt 0:04:50]} Rd8 {[%emt 0:05:12]} 27. Ne5 {[%emt 0:03:16]} Rcc8 {[%emt 0:00:23]} 28. cxd4 {[%emt 0:01:18]} Rxd4 {[%emt 0:03:00]} 29. Rxd4 {[%emt 0:00:41]} Nxd4 {[%emt 0:00:05]} 30. Rd2 {[%emt 0:01:01]} Rd8 {[%emt 0:00:26]} 31. Rd3 {[%emt 0:02:10]} Rd5 {[%emt 0:04:43]} 32. Nc4 {[%emt 0:02:30]} f6 {[%emt 0:05:35]} 33. Ra3 {[%emt 0:02:35]} Rd7 {[%emt 0:00:11]} 34. Ra5 {[%emt 0:01:07]} Nf5 {[%emt 0:02:27]} 35. b4 {[%emt 0:04:31]} Nxh4 {[%emt 0:00:47]} 36. b5 {[%emt 0:00:28]} Nf5 {[%emt 0:00:31]} 37. b6 {[%emt 0:00:29]} axb6 {[%emt 0:00:16]} 38. Nxb6 {[%emt 0:00:07]} Rd2 {[%emt 0:02:17]} 39. Nc4 {[%emt 0:01:12]} Rc2 {[%emt 0:00:19]} 40. Ra4 {[%emt 0:00:00]} h4 {[%emt 0:00:00]} 41. a3 {[%emt 0:04:09]} Rc1 {[%emt 0:03:01]} 42. Kh3 {[%emt 0:02:57]} Rh1+ {[%emt 0:00:41]} 43. Kg4 {[%emt 0:00:11]} Rh2 {[%emt 0:00:13]} 44. Kf4 {[%emt 0:01:49]} Rxg2 {[%emt 0:00:07]} 45. Rb4 {[%emt 0:00:34]} h3 {[%emt 0:00:21]} 46. Rb1 {[%emt 0:00:20]} h2 {[%emt 0:00:04]} 47. Rh1 {[%emt 0:00:54]} g5+ {[%emt 0:00:05]} 48. Ke4 {[%emt 0:00:11]} Ng3+ {[%emt 0:00:05]} 0-1

[Event "ROU-chT Women Superliga 2018"]
[Site "Sovata"]
[Date "2018.12.01"]
[Round "7"]
[White "Rata, Anamaria"]
[Black "Ciolacu, Alessia-Mihaela"]
[Result "1/2-1/2"]
[ECO "C50"]
[WhiteElo "1803"]
[BlackElo "2061"]
[Annotator "NA"]
[PlyCount "117"]
[EventDate "2018.11.24"]
[EventType "team-tourn"]
[EventCountry "ROU"]
[SourceTitle "playchess.com"]
[Source "ChessBase"]
[SourceQuality "1"]
[TimeControl "40/5400+30:1800+30"]

1. e4 {[%emt 0:00:00]} e5 {[%emt 0:00:00]} 2. Nf3 {[%emt 0:00:00]} Nc6 {[%emt 0:00:00]} 3. Bc4 {[%emt 0:00:00]} Be7 {[%emt 0:00:00]} 4. d4 {[%emt 0:00:04]} exd4 {[%emt 0:00:00]} 5. Nxd4 {[%emt 0:00:16]} d6 {[%emt 0:00:11]} 6. Nxc6 {[%emt 0:03:53]} bxc6 {[%emt 0:00:04]} 7. Nc3 {[%emt 0:01:37]} Nf6 {[%emt 0:00:18]} 8. O-O {[%emt 0:05:24]} O-O {[%emt 0:00:11]} 9. f4 {[%emt 0:07:21]} Nd7 {[%emt 0:02:59]} 10. Be3 {[%emt 0:03:55]} Bf6 {[%emt 0:01:08]} 11. Bd4 {[%emt 0:01:36]} a5 {[%emt 0:20:55]} 12. e5 {[%emt 0:31:25]} Be7 {[%emt 0:11:53]} 13. e6 {[%emt 0:09:23]} fxe6 {[%emt 0:02:51]} 14. Bxe6+ {[%emt 0:01:21]} Kh8 {[%emt 0:00:06]} 15. Ne4 {[%emt 0:05:45]} d5 {[%emt 0:12:15]} 16. Ng3 {[%emt 0:18:35]} Nc5 {[%emt 0:03:51]} 17. Bxc8 {[%emt 0:01:41]} Qxc8 {[%emt 0:00:08]} 18. Nh5 {[%emt 0:00:46]} Ne6 {[%emt 0:03:51]} 19. Qg4 {[%emt 0:01:36]} Rf7 {[%emt 0:02:07]} 20. Be5 {[%emt 0:00:58]} Bf6 {[%emt 0:17:29]} 21. Bxf6 {[%emt 0:02:46]} gxf6 {[%emt 0:00:07]} 22. f5 {[%emt 0:01:07]} Nc5 {[%emt 0:01:09]} 23. Qd4 {[%emt 0:01:17]} Ne4 {[%emt 0:02:47]} 24. Rae1 {[%emt 0:00:31]} Qb7 {[%emt 0:03:10]} 25. Rf3 {[%emt 0:00:39]} c5 {[%emt 0:05:09]} 26. Qa4 {[%emt 0:00:27]} Qb4 {[%emt 0:02:11]} 27. Qxb4 {[%emt 0:00:31]} axb4 {[%emt 0:00:01]} 28. Rd3 {[%emt 0:00:24]} c6 {[%emt 0:00:21]} 29. a3 {[%emt 0:00:36]} c4 {[%emt 0:00:45]} 30. Rd4 {[%emt 0:00:27]} bxa3 {[%emt 0:00:46]} 31. bxa3 {[%emt 0:00:05]} Rb7 {[%emt 0:02:09]} 32. Rexe4 {[%emt 0:00:54]} dxe4 {[%emt 0:00:09]} 33. Rxe4 {[%emt 0:00:07]} Rb1+ {[%emt 0:01:15]} 34. Kf2 {[%emt 0:00:05]} Rb5 {[%emt 0:00:03]} 35. g4 {[%emt 0:00:14]} c3 {[%emt 0:02:52]} 36. Re7 {[%emt 0:00:44]} Kg8 {[%emt 0:02:07]} 37. Rc7 {[%emt 0:01:08]} Rb2 {[%emt 0:01:29]} 38. Nxf6+ {[%emt 0:00:38]} Kf8 {[%emt 0:00:05]} 39. Rxc6 {[%emt 0:00:37]} Rxc2+ {[%emt 0:00:40]} 40. Ke3 {[%emt 0:00:00]} Rxh2 {[%emt 0:00:00]} 41. Rxc3 {[%emt 0:02:36]} Rh3+ {[%emt 0:01:23]} 42. Kd2 {[%emt 0:00:27]} Rxc3 {[%emt 0:00:11]} 43. Kxc3 {[%emt 0:00:06]} Rxa3+ {[%emt 0:00:05]} 44. Kd4 {[%emt 0:00:18]} Kg7 {[%emt 0:02:11]} 45. Ne4 {[%emt 0:01:13]} Ra1 {[%emt 0:06:20]} 46. Ke5 {[%emt 0:01:29]} Rg1 {[%emt 0:00:26]} 47. g5 {[%emt 0:01:45]} Rg4 {[%emt 0:01:36]} 48. Kd5 {[%emt 0:01:15]} Kf7 {[%emt 0:02:32]} 49. Ke5 {[%emt 0:01:27]} Kg7 {[%emt 0:00:58]} 50. Kd5 {[%emt 0:00:30]} Rg1 {[%emt 0:01:06]} 51. Ke6 {[%emt 0:00:39]} Re1 {[%emt 0:01:09]} 52. Ke5 {[%emt 0:00:40]} Ra1 {[%emt 0:01:42]} 53. Nd6 {[%emt 0:00:45]} Re1+ {[%emt 0:00:34]} 54. Ne4 {[%emt 0:00:08]} Re3 {[%emt 0:02:40]} 55. Kf4 {[%emt 0:00:24]} Rd3 {[%emt 0:00:07]} 56. Ke5 {[%emt 0:00:15]} Rd7 {[%emt 0:00:47]} 57. Ke6 {[%emt 0:00:35]} Ra7 {[%emt 0:00:57]} 58. Nd6 {[%emt 0:00:53]} Kf8 {[%emt 0:01:25]} 59. Kf6 {[%emt 0:00:51]} 1/2-1/2